[Event "Chessable Masters - Torneo preliminare"]
[White "Mekhitarian, Krikor Sevag"]
[Black "Kaufman, Lawrence"]
[WhiteFideId "2107660"]
[BlackFideId "2000555"]
[WhiteElo "2594"]
[BlackElo "2204"]
[Result "1-0"]
[Round "7"]
[TimeControl "600+2"]
[Date "2023.03.13"]
[WhiteClock "0:01:05"]
[BlackClock "0:00:03"]

1. Nf3 {[%clk 0:10:01]}  d5 {[%clk 0:09:58]} 2. c4 {[%clk 0:10:02]}  e6 {[%clk 0:09:55]} 3. e3 {[%clk 0:10:01]}  Nf6 {[%clk 0:09:53]} 4. Nc3 {[%clk 0:09:59]}  c6 {[%clk 0:09:17]} 5. b3 {[%clk 0:09:59]}  Bd6 {[%clk 0:09:13]} 6. Bb2 {[%clk 0:09:59]}  O-O {[%clk 0:09:12]} 7. Qc2 {[%clk 0:09:59]}  a6 {[%clk 0:09:00]} 8. d4 {[%clk 0:09:53]}  Nbd7 {[%clk 0:07:53]} 9. Bd3 {[%clk 0:09:52]}  b5 {[%clk 0:07:41]} 10. O-O {[%clk 0:09:46]}  bxc4 {[%clk 0:07:01]} 11. bxc4 {[%clk 0:09:47]}  Rb8 {[%clk 0:06:56]} 12. Rab1 {[%clk 0:09:30]}  Qe7 {[%clk 0:06:01]} 13. Ne2 {[%clk 0:07:58]}  a5 {[%clk 0:05:22]} 14. Ne5 {[%clk 0:07:35]}  Bxe5 {[%clk 0:04:21]} 15. dxe5 {[%clk 0:07:35]}  Ng4 {[%clk 0:04:22]} 16. Nd4 {[%clk 0:02:37]}  Qh4 {[%clk 0:03:04]} 17. Nf3 {[%clk 0:02:14]}  Qh5 {[%clk 0:03:01]} 18. Be2 {[%clk 0:02:07]}  Ba6 {[%clk 0:01:55]} 19. h3 {[%clk 0:02:05]}  Nh6 {[%clk 0:01:39]} 20. Nd4 {[%clk 0:02:04]}  Qh4 {[%clk 0:01:33]} 21. Nxc6 {[%clk 0:02:01]}  Rbc8 {[%clk 0:01:10]} 22. cxd5 {[%clk 0:02:01]}  Bxe2 {[%clk 0:01:02]} 23. Qxe2 {[%clk 0:02:03]}  exd5 {[%clk 0:00:55]} 24. Rbc1 {[%clk 0:01:36]}  Nf5 {[%clk 0:00:44]} 25. Qg4 {[%clk 0:01:33]}  Rxc6 {[%clk 0:00:10]} 26. Rxc6 {[%clk 0:01:30]}  g6 {[%clk 0:00:06]} 27. Qxh4 {[%clk 0:01:27]}  Nxh4 {[%clk 0:00:06]} 28. Rd1 {[%clk 0:01:22]}  Nf5 {[%clk 0:00:03]} 29. Ba3 {[%clk 0:01:09]}  Re8 {[%clk 0:00:02]} 30. Rxd5 {[%clk 0:01:07]}  Nf8 {[%clk 0:00:03]} 31. Bxf8 {[%clk 0:01:04]}  Kxf8 {[%clk 0:00:03]} 32. Rxa5 {[%clk 0:01:05]}  Kg7 {[%clk 0:00:03]} 33. Rc7 {[%clk 0:01:05]}  Rf8 {[%clk 0:00:03]} 34. e6 {[%clk 0:01:05]} 1-0


[Site "Internet"]

[Event "Chessable Masters - Torneo preliminare"]
[White "Le, Quang Liem"]
[Black "Aronian, Levon"]
[WhiteFideId "12401137"]
[BlackFideId "13300474"]
[WhiteElo "2661"]
[BlackElo "2720"]
[Result "1/2-1/2"]
[Round "8"]
[TimeControl "600+2"]
[Date "2023.03.13"]
[WhiteClock "0:00:23"]
[BlackClock "0:00:05"]

1. d4 {[%clk 0:10:01]}  Nf6 {[%clk 0:09:40]} 2. Nf3 {[%clk 0:10:02]}  d5 {[%clk 0:09:39]} 3. c4 {[%clk 0:10:03]}  e6 {[%clk 0:09:40]} 4. Nc3 {[%clk 0:10:04]}  Bb4 {[%clk 0:09:39]} 5. Bg5 {[%clk 0:10:02]}  dxc4 {[%clk 0:09:39]} 6. e4 {[%clk 0:10:02]}  c5 {[%clk 0:09:39]} 7. Bxc4 {[%clk 0:10:02]}  cxd4 {[%clk 0:09:39]} 8. Nxd4 {[%clk 0:10:03]}  Qa5 {[%clk 0:09:39]} 9. Bd2 {[%clk 0:10:00]}  Qc5 {[%clk 0:09:39]} 10. Bb5+ {[%clk 0:10:00]}  Bd7 {[%clk 0:09:36]} 11. Nb3 {[%clk 0:10:02]}  Qc7 {[%clk 0:09:37]} 12. O-O {[%clk 0:09:59]}  O-O {[%clk 0:09:37]} 13. Bd3 {[%clk 0:09:48]}  Nc6 {[%clk 0:09:35]} 14. a3 {[%clk 0:09:47]}  Be7 {[%clk 0:09:04]} 15. Kh1 {[%clk 0:09:46]}  Rfd8 {[%clk 0:08:55]} 16. f4 {[%clk 0:09:35]}  Be8 {[%clk 0:08:55]} 17. Qe2 {[%clk 0:09:36]}  Rac8 {[%clk 0:08:02]} 18. Rad1 {[%clk 0:09:10]}  Qb6 {[%clk 0:06:41]} 19. Bc2 {[%clk 0:09:08]}  Qa6 {[%clk 0:06:42]} 20. Qf3 {[%clk 0:08:56]}  Nd4 {[%clk 0:05:29]} 21. Nxd4 {[%clk 0:08:54]}  Rxd4 {[%clk 0:05:31]} 22. Be3 {[%clk 0:08:42]}  Rxd1 {[%clk 0:05:24]} 23. Rxd1 {[%clk 0:08:44]}  Bc6 {[%clk 0:04:57]} 24. h3 {[%clk 0:08:36]}  Qa5 {[%clk 0:04:43]} 25. Qf2 {[%clk 0:08:20]}  a6 {[%clk 0:04:31]} 26. Bb6 {[%clk 0:07:37]}  Qh5 {[%clk 0:04:31]} 27. Kg1 {[%clk 0:07:39]}  Nd7 {[%clk 0:04:19]} 28. Be3 {[%clk 0:07:38]}  Qa5 {[%clk 0:03:59]} 29. e5 {[%clk 0:07:17]}  Qc7 {[%clk 0:03:48]} 30. Be4 {[%clk 0:06:55]}  b5 {[%clk 0:03:21]} 31. Kh2 {[%clk 0:06:39]}  g6 {[%clk 0:02:39]} 32. Qf3 {[%clk 0:06:32]}  Nb6 {[%clk 0:02:28]} 33. Bxc6 {[%clk 0:05:39]}  Qxc6 {[%clk 0:02:30]} 34. Qxc6 {[%clk 0:05:29]}  Rxc6 {[%clk 0:02:31]} 35. Bxb6 {[%clk 0:05:20]}  Rxb6 {[%clk 0:02:32]} 36. Rd7 {[%clk 0:05:21]}  Kf8 {[%clk 0:02:33]} 37. Ne4 {[%clk 0:05:04]}  b4 {[%clk 0:02:06]} 38. a4 {[%clk 0:03:56]}  b3 {[%clk 0:02:06]} 39. Kg3 {[%clk 0:03:18]}  Rb4 {[%clk 0:02:06]} 40. Nc3 {[%clk 0:03:19]}  g5 {[%clk 0:02:00]} 41. f5 {[%clk 0:03:17]}  Ke8 {[%clk 0:01:45]} 42. Ra7 {[%clk 0:02:32]}  Bc5 {[%clk 0:01:44]} 43. Ra8+ {[%clk 0:02:20]}  Kd7 {[%clk 0:01:44]} 44. Rxa6 {[%clk 0:02:17]}  exf5 {[%clk 0:01:32]} 45. Nd5 {[%clk 0:01:18]}  Rd4 {[%clk 0:01:33]} 46. Nf6+ {[%clk 0:01:18]}  Kc7 {[%clk 0:01:34]} 47. Ra5 {[%clk 0:01:17]}  Rd3+ {[%clk 0:01:22]} 48. Kh2 {[%clk 0:01:17]}  Bf2 {[%clk 0:01:22]} 49. g4 {[%clk 0:01:12]}  Rd2 {[%clk 0:01:14]} 50. Rd5 {[%clk 0:01:06]}  Rxb2 {[%clk 0:00:51]} 51. gxf5 {[%clk 0:00:58]}  Bh4+ {[%clk 0:00:44]} 52. Kh1 {[%clk 0:00:56]}  Re2 {[%clk 0:00:45]} 53. Rb5 {[%clk 0:00:47]}  b2 {[%clk 0:00:45]} 54. Nd5+ {[%clk 0:00:33]}  Kd7 {[%clk 0:00:45]} 55. Nc3 {[%clk 0:00:29]}  Re3 {[%clk 0:00:44]} 56. Rxb2 {[%clk 0:00:24]}  Rxh3+ {[%clk 0:00:45]} 57. Kg2 {[%clk 0:00:25]}  Rxc3 {[%clk 0:00:46]} 58. Rb7+ {[%clk 0:00:26]}  Ke8 {[%clk 0:00:22]} 59. Rb8+ {[%clk 0:00:20]}  Ke7 {[%clk 0:00:22]} 60. Rb7+ {[%clk 0:00:22]}  Ke8 {[%clk 0:00:12]} 61. Rb8+ {[%clk 0:00:21]}  Ke7 {[%clk 0:00:06]} 62. Rb7+ {[%clk 0:00:23]}  Ke8 {[%clk 0:00:05]} 1/2-1/2


[Site "Internet"]

[Event "Chessable Masters - Torneo preliminare"]
[White "Artemiev, Vladislav"]
[Black "Abdusattorov, Nodirbek"]
[WhiteFideId "24101605"]
[BlackFideId "14204118"]
[WhiteElo "2735"]
[BlackElo "2714"]
[Result "1/2-1/2"]
[Round "8"]
[TimeControl "600+2"]
[Date "2023.03.13"]
[WhiteClock "0:00:09"]
[BlackClock "0:03:42"]

1. Nf3 {[%clk 0:09:57]}  d5 {[%clk 0:10:00]} 2. d4 {[%clk 0:09:50]}  Nf6 {[%clk 0:10:01]} 3. c4 {[%clk 0:09:51]}  dxc4 {[%clk 0:10:01]} 4. e3 {[%clk 0:09:51]}  e6 {[%clk 0:10:03]} 5. Bxc4 {[%clk 0:09:51]}  c5 {[%clk 0:10:05]} 6. O-O {[%clk 0:09:38]}  a6 {[%clk 0:10:03]} 7. Nc3 {[%clk 0:08:54]}  cxd4 {[%clk 0:09:47]} 8. exd4 {[%clk 0:08:31]}  Be7 {[%clk 0:09:46]} 9. Ne5 {[%clk 0:07:33]}  O-O {[%clk 0:09:43]} 10. Be2 {[%clk 0:07:24]}  Bd7 {[%clk 0:09:30]} 11. Bf3 {[%clk 0:05:42]}  Bc6 {[%clk 0:09:15]} 12. Nxc6 {[%clk 0:05:12]}  Nxc6 {[%clk 0:09:17]} 13. Be3 {[%clk 0:04:44]}  Rc8 {[%clk 0:08:37]} 14. d5 {[%clk 0:04:03]}  exd5 {[%clk 0:08:22]} 15. Nxd5 {[%clk 0:03:57]}  Nxd5 {[%clk 0:08:21]} 16. Qxd5 {[%clk 0:03:55]}  Qxd5 {[%clk 0:08:11]} 17. Bxd5 {[%clk 0:03:55]}  Bf6 {[%clk 0:08:10]} 18. Rad1 {[%clk 0:03:01]}  Rfd8 {[%clk 0:07:56]} 19. b3 {[%clk 0:02:31]}  g6 {[%clk 0:07:48]} 20. g4 {[%clk 0:01:59]}  Rd7 {[%clk 0:07:04]} 21. Bxc6 {[%clk 0:01:47]}  Rxd1 {[%clk 0:07:00]} 22. Rxd1 {[%clk 0:01:48]}  Rxc6 {[%clk 0:06:57]} 23. Rd7 {[%clk 0:01:48]}  b5 {[%clk 0:06:49]} 24. Bh6 {[%clk 0:01:44]}  g5 {[%clk 0:04:59]} 25. Rd5 {[%clk 0:01:15]}  Be7 {[%clk 0:04:55]} 26. Bxg5 {[%clk 0:01:16]}  Bxg5 {[%clk 0:04:57]} 27. Rxg5+ {[%clk 0:01:17]}  Kf8 {[%clk 0:04:59]} 28. h3 {[%clk 0:00:47]}  Rc2 {[%clk 0:04:59]} 29. a4 {[%clk 0:00:38]}  Rb2 {[%clk 0:04:28]} 30. axb5 {[%clk 0:00:36]}  a5 {[%clk 0:04:29]} 31. b6 {[%clk 0:00:25]}  Rxb3 {[%clk 0:04:30]} 32. Rxa5 {[%clk 0:00:25]}  Rxb6 {[%clk 0:04:32]} 33. Kg2 {[%clk 0:00:24]}  h6 {[%clk 0:04:31]} 34. Kg3 {[%clk 0:00:17]}  Rb3+ {[%clk 0:04:32]} 35. f3 {[%clk 0:00:18]}  Kg7 {[%clk 0:04:34]} 36. Ra6 {[%clk 0:00:16]}  Rc3 {[%clk 0:04:35]} 37. Rd6 {[%clk 0:00:14]}  Ra3 {[%clk 0:04:36]} 38. Rd2 {[%clk 0:00:14]}  Ra1 {[%clk 0:04:35]} 39. Re2 {[%clk 0:00:11]}  Rg1+ {[%clk 0:04:35]} 40. Kf2 {[%clk 0:00:12]}  Rh1 {[%clk 0:04:37]} 41. Kg2 {[%clk 0:00:13]}  Ra1 {[%clk 0:04:39]} 42. Re3 {[%clk 0:00:14]}  Rb1 {[%clk 0:04:38]} 43. f4 {[%clk 0:00:15]}  Rb4 {[%clk 0:04:37]} 44. Kg3 {[%clk 0:00:15]}  Rb5 {[%clk 0:04:32]} 45. Rd3 {[%clk 0:00:12]}  Rb4 {[%clk 0:04:32]} 46. Rd6 {[%clk 0:00:10]}  Rb3+ {[%clk 0:04:31]} 47. Kh4 {[%clk 0:00:11]}  Rf3 {[%clk 0:04:33]} 48. f5 {[%clk 0:00:12]}  Re3 {[%clk 0:04:32]} 49. Rd2 {[%clk 0:00:08]}  Rf3 {[%clk 0:04:32]} 50. Rg2 {[%clk 0:00:08]}  h5 {[%clk 0:04:01]} 51. Kxh5 {[%clk 0:00:04]}  Rxh3+ {[%clk 0:04:01]} 52. Kg5 {[%clk 0:00:05]}  Rf3 {[%clk 0:03:55]} 53. Kh4 {[%clk 0:00:05]}  Rf1 {[%clk 0:03:55]} 54. Kg3 {[%clk 0:00:04]}  Kf6 {[%clk 0:03:54]} 55. Rh2 {[%clk 0:00:05]}  Rg1+ {[%clk 0:03:51]} 56. Kh4 {[%clk 0:00:07]}  Kg7 {[%clk 0:03:50]} 57. Rb2 {[%clk 0:00:06]}  Rh1+ {[%clk 0:03:50]} 58. Kg3 {[%clk 0:00:07]}  Rg1+ {[%clk 0:03:52]} 59. Kf3 {[%clk 0:00:07]}  Rf1+ {[%clk 0:03:53]} 60. Rf2 {[%clk 0:00:09]}  Rg1 {[%clk 0:03:54]} 61. Kf4 {[%clk 0:00:09]}  Kf6 {[%clk 0:03:55]} 62. Rf3 {[%clk 0:00:10]}  Rg2 {[%clk 0:03:50]} 63. Rf1 {[%clk 0:00:11]}  Ra2 {[%clk 0:03:50]} 64. g5+ {[%clk 0:00:12]}  Kg7 {[%clk 0:03:52]} 65. Kg4 {[%clk 0:00:10]}  Rg2+ {[%clk 0:03:53]} 66. Kh4 {[%clk 0:00:11]}  Rh2+ {[%clk 0:03:54]} 67. Kg3 {[%clk 0:00:12]}  Ra2 {[%clk 0:03:55]} 68. Re1 {[%clk 0:00:09]}  Ra3+ {[%clk 0:03:40]} 69. Kf4 {[%clk 0:00:09]}  Ra4+ {[%clk 0:03:41]} 70. Re4 {[%clk 0:00:11]}  Ra1 {[%clk 0:03:43]} 71. Re7 {[%clk 0:00:07]}  Rf1+ {[%clk 0:03:44]} 72. Ke5 {[%clk 0:00:06]}  Re1+ {[%clk 0:03:41]} 73. Kd6 {[%clk 0:00:07]}  Rd1+ {[%clk 0:03:42]} 74. Kc7 {[%clk 0:00:06]}  Rd5 {[%clk 0:03:37]} 75. g6 {[%clk 0:00:05]}  Rxf5 {[%clk 0:03:38]} 76. Rxf7+ {[%clk 0:00:07]}  Rxf7+ {[%clk 0:03:39]} 77. gxf7 {[%clk 0:00:08]}  Kf8 {[%clk 0:03:40]} 78. Kd8 {[%clk 0:00:09]}  Kxf7 {[%clk 0:03:42]} 1/2-1/2


[Site "Internet"]

[Event "Chessable Masters - Torneo preliminare"]
[White "Fedoseev, Vladimir"]
[Black "Sevian, Samuel"]
[WhiteFideId "24130737"]
[BlackFideId "2040506"]
[WhiteElo "2752"]
[BlackElo "2582"]
[Result "1-0"]
[Round "8"]
[TimeControl "600+2"]
[Date "2023.03.13"]
[WhiteClock "0:08:40"]
[BlackClock "0:10:03"]

1. e4 {[%clk 0:10:00]}  e5 {[%clk 0:10:00]} 2. Nf3 {[%clk 0:10:01]}  Nc6 {[%clk 0:10:02]} 3. Bb5 {[%clk 0:10:01]}  a6 {[%clk 0:10:03]} 4. Ba4 {[%clk 0:10:02]}  Nf6 {[%clk 0:10:04]} 5. O-O {[%clk 0:10:02]}  Nxe4 {[%clk 0:10:05]} 6. d4 {[%clk 0:10:00]}  b5 {[%clk 0:10:06]} 7. Bb3 {[%clk 0:10:01]}  d5 {[%clk 0:10:07]} 8. dxe5 {[%clk 0:10:00]}  Be6 {[%clk 0:10:08]} 9. c3 {[%clk 0:09:59]}  Be7 {[%clk 0:10:08]} 10. Be3 {[%clk 0:09:27]}  O-O {[%clk 0:10:08]} 11. Nbd2 {[%clk 0:09:12]}  Bg4 {[%clk 0:10:09]} 12. Nxe4 {[%clk 0:08:57]}  dxe4 {[%clk 0:10:11]} 13. Qd5 {[%clk 0:08:50]}  Qxd5 {[%clk 0:10:12]} 14. Bxd5 {[%clk 0:08:49]}  exf3 {[%clk 0:10:13]} 15. Bxc6 {[%clk 0:08:50]}  fxg2 {[%clk 0:10:15]} 16. Rfc1 {[%clk 0:08:47]}  Rad8 {[%clk 0:10:16]} 17. a4 {[%clk 0:08:46]}  b4 {[%clk 0:10:01]} 18. cxb4 {[%clk 0:08:41]}  Bxb4 {[%clk 0:10:03]} 19. Rc4 {[%clk 0:08:40]} 1-0


[Site "Internet"]

[Event "Chessable Masters - Torneo preliminare"]
[White "Praggnanandhaa, R"]
[Black "Vachier-Lagrave, Maxime"]
[WhiteFideId "25059530"]
[BlackFideId "623539"]
[WhiteElo "2587"]
[BlackElo "2762"]
[Result "1/2-1/2"]
[Round "8"]
[TimeControl "600+2"]
[Date "2023.03.13"]
[WhiteClock "0:03:41"]
[BlackClock "0:05:38"]

1. d4 {[%clk 0:10:01]}  Nf6 {[%clk 0:10:00]} 2. c4 {[%clk 0:10:02]}  g6 {[%clk 0:10:02]} 3. Nc3 {[%clk 0:10:03]}  d5 {[%clk 0:10:03]} 4. Nf3 {[%clk 0:09:36]}  Bg7 {[%clk 0:10:04]} 5. e3 {[%clk 0:09:37]}  O-O {[%clk 0:10:03]} 6. cxd5 {[%clk 0:09:39]}  Nxd5 {[%clk 0:10:05]} 7. Bc4 {[%clk 0:09:41]}  Nb6 {[%clk 0:10:05]} 8. Bb3 {[%clk 0:09:42]}  c5 {[%clk 0:10:06]} 9. O-O {[%clk 0:09:42]}  Bg4 {[%clk 0:10:07]} 10. dxc5 {[%clk 0:09:43]}  N6d7 {[%clk 0:10:07]} 11. Na4 {[%clk 0:09:44]}  Qc7 {[%clk 0:09:56]} 12. h3 {[%clk 0:09:40]}  Bxf3 {[%clk 0:09:57]} 13. Qxf3 {[%clk 0:09:42]}  Na6 {[%clk 0:09:58]} 14. c6 {[%clk 0:09:42]}  Ne5 {[%clk 0:09:42]} 15. Qe2 {[%clk 0:09:24]}  Qxc6 {[%clk 0:09:29]} 16. Bd2 {[%clk 0:09:22]}  Rad8 {[%clk 0:09:18]} 17. Rac1 {[%clk 0:08:48]}  Qe4 {[%clk 0:09:13]} 18. Ba5 {[%clk 0:08:36]}  Qd3 {[%clk 0:08:57]} 19. Qe1 {[%clk 0:06:30]}  Rc8 {[%clk 0:07:30]} 20. Rd1 {[%clk 0:06:28]}  Qb5 {[%clk 0:06:47]} 21. Rd5 {[%clk 0:06:07]}  Nc5 {[%clk 0:06:47]} 22. Nxc5 {[%clk 0:05:14]}  Rxc5 {[%clk 0:06:47]} 23. Rxc5 {[%clk 0:05:13]}  Qxc5 {[%clk 0:06:49]} 24. Bb4 {[%clk 0:05:14]}  Qc7 {[%clk 0:06:44]} 25. Qe2 {[%clk 0:05:13]}  Rd8 {[%clk 0:06:29]} 26. Rd1 {[%clk 0:04:53]}  Rxd1+ {[%clk 0:06:14]} 27. Qxd1 {[%clk 0:04:55]}  Nc6 {[%clk 0:06:04]} 28. Ba3 {[%clk 0:04:52]}  e6 {[%clk 0:06:01]} 29. Ba4 {[%clk 0:04:40]}  Ne5 {[%clk 0:05:37]} 30. Bd6 {[%clk 0:04:33]}  Qd8 {[%clk 0:05:36]} 31. Bxe5 {[%clk 0:03:38]}  Qxd1+ {[%clk 0:05:37]} 32. Bxd1 {[%clk 0:03:40]}  Bxe5 {[%clk 0:05:38]} 33. b3 {[%clk 0:03:41]} 1/2-1/2


[Site "Internet"]

[Event "Chessable Masters - Torneo preliminare"]
[White "Erigaisi, Arjun"]
[Black "Dubov, Daniil"]
[WhiteFideId "35009192"]
[BlackFideId "24126055"]
[WhiteElo "2685"]
[BlackElo "2727"]
[Result "1/2-1/2"]
[Round "8"]
[TimeControl "600+2"]
[Date "2023.03.13"]
[WhiteClock "0:02:10"]
[BlackClock "0:00:20"]

1. d4 {[%clk 0:10:01]}  d5 {[%clk 0:09:57]} 2. c4 {[%clk 0:10:01]}  e6 {[%clk 0:09:56]} 3. Nc3 {[%clk 0:10:02]}  Nf6 {[%clk 0:09:56]} 4. cxd5 {[%clk 0:10:02]}  exd5 {[%clk 0:09:57]} 5. Bg5 {[%clk 0:10:03]}  Be7 {[%clk 0:09:58]} 6. e3 {[%clk 0:10:03]}  O-O {[%clk 0:09:59]} 7. Bd3 {[%clk 0:10:04]}  Re8 {[%clk 0:10:00]} 8. Nge2 {[%clk 0:10:01]}  c6 {[%clk 0:10:01]} 9. Qc2 {[%clk 0:09:59]}  g6 {[%clk 0:09:58]} 10. O-O {[%clk 0:09:44]}  Nbd7 {[%clk 0:09:48]} 11. Rae1 {[%clk 0:09:38]}  Nf8 {[%clk 0:09:47]} 12. f3 {[%clk 0:09:31]}  Ne6 {[%clk 0:09:44]} 13. Bh4 {[%clk 0:09:32]}  b5 {[%clk 0:09:45]} 14. Kh1 {[%clk 0:09:26]}  Bd7 {[%clk 0:09:13]} 15. e4 {[%clk 0:07:47]}  b4 {[%clk 0:09:13]} 16. Nd1 {[%clk 0:07:30]}  c5 {[%clk 0:09:04]} 17. e5 {[%clk 0:06:47]}  c4 {[%clk 0:07:02]} 18. exf6 {[%clk 0:06:47]}  Bxf6 {[%clk 0:07:02]} 19. Bxf6 {[%clk 0:06:49]}  cxd3 {[%clk 0:06:25]} 20. Qxd3 {[%clk 0:06:51]}  Qxf6 {[%clk 0:06:25]} 21. Ne3 {[%clk 0:06:53]}  Nc7 {[%clk 0:06:16]} 22. Ng4 {[%clk 0:06:29]}  Bxg4 {[%clk 0:06:00]} 23. fxg4 {[%clk 0:06:31]}  Qd6 {[%clk 0:05:56]} 24. Qf3 {[%clk 0:06:12]}  Re7 {[%clk 0:05:54]} 25. Nc1 {[%clk 0:06:08]}  Rae8 {[%clk 0:05:46]} 26. Nd3 {[%clk 0:06:00]}  Nb5 {[%clk 0:04:37]} 27. Qf2 {[%clk 0:05:55]}  f6 {[%clk 0:03:48]} 28. Rxe7 {[%clk 0:05:39]}  Rxe7 {[%clk 0:03:47]} 29. h3 {[%clk 0:05:29]}  Re4 {[%clk 0:03:38]} 30. Qxf6 {[%clk 0:05:14]}  Qxf6 {[%clk 0:03:37]} 31. Rxf6 {[%clk 0:05:16]}  Rxd4 {[%clk 0:03:26]} 32. Ne5 {[%clk 0:04:59]}  Rd1+ {[%clk 0:03:13]} 33. Kh2 {[%clk 0:05:00]}  Rd2 {[%clk 0:03:15]} 34. g5 {[%clk 0:04:51]}  Nd4 {[%clk 0:02:29]} 35. Rd6 {[%clk 0:04:33]}  Rxb2 {[%clk 0:02:19]} 36. Rd8+ {[%clk 0:03:53]}  Kg7 {[%clk 0:02:19]} 37. Rxd5 {[%clk 0:03:55]}  Ne6 {[%clk 0:01:57]} 38. Rd7+ {[%clk 0:03:55]}  Kg8 {[%clk 0:01:57]} 39. Rxa7 {[%clk 0:03:53]}  Nxg5 {[%clk 0:01:39]} 40. Ng4 {[%clk 0:03:50]}  Kf8 {[%clk 0:01:03]} 41. Kg3 {[%clk 0:03:27]}  b3 {[%clk 0:00:47]} 42. axb3 {[%clk 0:03:25]}  Rxb3+ {[%clk 0:00:48]} 43. Kf4 {[%clk 0:03:20]}  Nf7 {[%clk 0:00:48]} 44. Nf6 {[%clk 0:03:09]}  Rb4+ {[%clk 0:00:46]} 45. Ke3 {[%clk 0:03:06]}  Kg7 {[%clk 0:00:22]} 46. Ne4 {[%clk 0:03:07]}  Kf8 {[%clk 0:00:19]} 47. h4 {[%clk 0:03:03]}  Rb3+ {[%clk 0:00:13]} 48. Kd4 {[%clk 0:02:55]}  Rb4+ {[%clk 0:00:14]} 49. Kd5 {[%clk 0:02:56]}  Rb5+ {[%clk 0:00:14]} 50. Kc4 {[%clk 0:02:55]}  Rf5 {[%clk 0:00:08]} 51. g3 {[%clk 0:02:51]}  h6 {[%clk 0:00:06]} 52. Kd4 {[%clk 0:02:46]}  Kg8 {[%clk 0:00:05]} 53. Nc5 {[%clk 0:02:36]}  Rf1 {[%clk 0:00:04]} 54. Ne6 {[%clk 0:02:25]}  Rd1+ {[%clk 0:00:03]} 55. Kc5 {[%clk 0:02:22]}  Re1 {[%clk 0:00:05]} 56. Nf4 {[%clk 0:02:21]}  Re5+ {[%clk 0:00:05]} 57. Kd4 {[%clk 0:02:21]}  g5 {[%clk 0:00:06]} 58. Rxf7 {[%clk 0:02:14]}  Ra5 {[%clk 0:00:06]} 59. Rd7 {[%clk 0:02:03]}  gxf4 {[%clk 0:00:07]} 60. gxf4 {[%clk 0:02:04]}  Rh5 {[%clk 0:00:07]} 61. Ke4 {[%clk 0:02:03]}  Rxh4 {[%clk 0:00:07]} 62. Ke5 {[%clk 0:02:05]}  Rh1 {[%clk 0:00:07]} 63. Kf6 {[%clk 0:02:02]}  h5 {[%clk 0:00:07]} 64. f5 {[%clk 0:02:01]}  Ra1 {[%clk 0:00:06]} 65. Rg7+ {[%clk 0:01:57]}  Kf8 {[%clk 0:00:07]} 66. Rf7+ {[%clk 0:01:55]}  Kg8 {[%clk 0:00:07]} 67. Rg7+ {[%clk 0:01:57]}  Kf8 {[%clk 0:00:08]} 68. Rh7 {[%clk 0:01:57]}  Ra6+ {[%clk 0:00:08]} 69. Kg5 {[%clk 0:01:58]}  h4 {[%clk 0:00:09]} 70. Rxh4 {[%clk 0:01:56]}  Rb6 {[%clk 0:00:09]} 71. Rc4 {[%clk 0:01:56]}  Ra6 {[%clk 0:00:10]} 72. Rc7 {[%clk 0:01:57]}  Rb6 {[%clk 0:00:10]} 73. Kf4 {[%clk 0:01:58]}  Ra6 {[%clk 0:00:11]} 74. Rd7 {[%clk 0:02:00]}  Ke8 {[%clk 0:00:11]} 75. Rh7 {[%clk 0:01:59]}  Kf8 {[%clk 0:00:12]} 76. Kg5 {[%clk 0:02:00]}  Rb6 {[%clk 0:00:13]} 77. Ra7 {[%clk 0:02:01]}  Rc6 {[%clk 0:00:13]} 78. Kf4 {[%clk 0:02:02]}  Rb6 {[%clk 0:00:14]} 79. Ke5 {[%clk 0:02:04]}  Rc6 {[%clk 0:00:15]} 80. f6 {[%clk 0:02:04]}  Rc1 {[%clk 0:00:15]} 81. Ra8+ {[%clk 0:02:05]}  Kf7 {[%clk 0:00:16]} 82. Ra7+ {[%clk 0:02:07]}  Kf8 {[%clk 0:00:17]} 83. Ra8+ {[%clk 0:02:08]}  Kf7 {[%clk 0:00:19]} 84. Ra7+ {[%clk 0:02:10]}  Kf8 {[%clk 0:00:20]} 1/2-1/2


[Site "Internet"]

[Event "Chessable Masters - Torneo preliminare"]
[White "Yakubboev, Nodirbek"]
[Black "Sadhwani, Raunak"]
[WhiteFideId "14203987"]
[BlackFideId "35093487"]
[WhiteElo "2577"]
[BlackElo "2550"]
[Result "0-1"]
[Round "8"]
[TimeControl "600+2"]
[Date "2023.03.13"]
[WhiteClock "0:00:12"]
[BlackClock "0:00:10"]

1. c4 {[%clk 0:10:00]}  e5 {[%clk 0:09:58]} 2. Nc3 {[%clk 0:10:01]}  Nf6 {[%clk 0:09:57]} 3. Nf3 {[%clk 0:10:02]}  Nc6 {[%clk 0:09:58]} 4. e4 {[%clk 0:10:03]}  Bb4 {[%clk 0:09:55]} 5. d3 {[%clk 0:10:04]}  d6 {[%clk 0:09:51]} 6. a3 {[%clk 0:10:05]}  Bxc3+ {[%clk 0:09:44]} 7. bxc3 {[%clk 0:10:06]}  Nd7 {[%clk 0:09:35]} 8. g3 {[%clk 0:10:02]}  Nc5 {[%clk 0:09:35]} 9. Nh4 {[%clk 0:10:01]}  g6 {[%clk 0:09:29]} 10. Bg2 {[%clk 0:09:44]}  Na5 {[%clk 0:09:17]} 11. Be3 {[%clk 0:09:41]}  Bd7 {[%clk 0:08:44]} 12. O-O {[%clk 0:09:35]}  Qe7 {[%clk 0:08:25]} 13. f4 {[%clk 0:09:09]}  O-O-O {[%clk 0:08:04]} 14. Rb1 {[%clk 0:07:54]}  b6 {[%clk 0:07:39]} 15. Bf2 {[%clk 0:05:24]}  f6 {[%clk 0:06:57]} 16. Re1 {[%clk 0:05:01]}  Rhg8 {[%clk 0:05:55]} 17. d4 {[%clk 0:04:52]}  Ncb7 {[%clk 0:04:56]} 18. Qd3 {[%clk 0:04:11]}  Be6 {[%clk 0:04:52]} 19. Rb4 {[%clk 0:02:58]}  Qf7 {[%clk 0:03:20]} 20. fxe5 {[%clk 0:02:11]}  fxe5 {[%clk 0:03:07]} 21. d5 {[%clk 0:02:11]}  Bd7 {[%clk 0:02:52]} 22. Nf3 {[%clk 0:01:56]}  Qe7 {[%clk 0:02:39]} 23. Rb2 {[%clk 0:01:07]}  g5 {[%clk 0:02:24]} 24. Be3 {[%clk 0:00:37]}  h5 {[%clk 0:02:09]} 25. Rf1 {[%clk 0:00:25]}  h4 {[%clk 0:02:08]} 26. Rbf2 {[%clk 0:00:24]}  h3 {[%clk 0:01:20]} 27. Bh1 {[%clk 0:00:24]}  Rdf8 {[%clk 0:01:07]} 28. Nd2 {[%clk 0:00:12]}  Rxf2 {[%clk 0:01:09]} 29. Rxf2 {[%clk 0:00:14]}  g4 {[%clk 0:01:09]} 30. Qf1 {[%clk 0:00:14]}  Nd8 {[%clk 0:00:52]} 31. Rf6 {[%clk 0:00:11]}  Kb8 {[%clk 0:00:47]} 32. Bh6 {[%clk 0:00:08]}  Bc8 {[%clk 0:00:42]} 33. c5 {[%clk 0:00:05]}  dxc5 {[%clk 0:00:38]} 34. Bf8 {[%clk 0:00:05]}  Qd7 {[%clk 0:00:19]} 35. d6 {[%clk 0:00:07]}  Ne6 {[%clk 0:00:20]} 36. Bh6 {[%clk 0:00:04]}  Qxd6 {[%clk 0:00:19]} 37. Be3 {[%clk 0:00:06]}  Qd7 {[%clk 0:00:13]} 38. Qe2 {[%clk 0:00:06]}  Qa4 {[%clk 0:00:11]} 39. Rf5 {[%clk 0:00:05]}  Nc6 {[%clk 0:00:08]} 40. Qc4 {[%clk 0:00:03]}  Qxc4 {[%clk 0:00:09]} 41. Nxc4 {[%clk 0:00:05]}  Ned8 {[%clk 0:00:08]} 42. Rf6 {[%clk 0:00:04]}  Be6 {[%clk 0:00:06]} 43. Nd2 {[%clk 0:00:05]}  Kc8 {[%clk 0:00:08]} 44. Kf2 {[%clk 0:00:06]}  Kd7 {[%clk 0:00:09]} 45. Ke2 {[%clk 0:00:08]}  Nf7 {[%clk 0:00:10]} 46. Kd1 {[%clk 0:00:08]}  Nd6 {[%clk 0:00:12]} 47. Kc2 {[%clk 0:00:08]}  Nc4 {[%clk 0:00:11]} 48. Nxc4 {[%clk 0:00:06]}  Bxc4 {[%clk 0:00:13]} 49. Bd2 {[%clk 0:00:06]}  Be6 {[%clk 0:00:14]} 50. Bh6 {[%clk 0:00:07]}  Na5 {[%clk 0:00:13]} 51. a4 {[%clk 0:00:07]}  Nc4 {[%clk 0:00:14]} 52. Bc1 {[%clk 0:00:07]}  a5 {[%clk 0:00:15]} 53. Kd3 {[%clk 0:00:07]}  Ke7 {[%clk 0:00:13]} 54. Rf1 {[%clk 0:00:08]}  Nd6 {[%clk 0:00:13]} 55. Kc2 {[%clk 0:00:08]}  Rf8 {[%clk 0:00:10]} 56. Bg5+ {[%clk 0:00:09]}  Ke8 {[%clk 0:00:11]} 57. Rf6 {[%clk 0:00:10]}  Rxf6 {[%clk 0:00:12]} 58. Bxf6 {[%clk 0:00:12]}  Nf7 {[%clk 0:00:10]} 59. Bg7 {[%clk 0:00:11]}  Bc4 {[%clk 0:00:09]} 60. Kb2 {[%clk 0:00:12]}  Bf1 {[%clk 0:00:10]} 0-1


[Site "Internet"]